Cogmind - Beta 13 @@@ ROGUE MODE // 2024.05.08 @ 01:24:04 Player: lzrtly Result: Destroyed by P9-K8M(R) with Subdweller Laser Performance ------------- Evolutions (0) 0 Regions Visited (2) 400 Robots Destroyed (14) 70 Value Destroyed (239) 239 Prototype IDs (0) 0 Alien Tech Used (0) 0 Bonus (0) 0 TOTAL SCORE: 709 Bonus ------- None Cogmind --------- Core Integrity 0/250 Matter 282/300 Energy 100/100 System Corruption 0% Temperature Cool (6) Movement Core (50) Location -10/Subcaves Parts ------- > --- POWER (1) -------- (None) > --- PROPULSION (2) --- (None) > --- UTILITY (2) ------ (None) > --- WEAPON (2) ------- Light Assault Rifle > --- INVENTORY (5) ---- Flight Unit Flight Unit Flight Unit Peak State ------------ > --- POWER ------------ (None) > --- PROPULSION ------- Flight Unit > --- UTILITY ---------- Makeshift Kinetic Plating > --- WEAPON ----------- Light Assault Rifle Light Assault Rifle > --- INVENTORY -------- Flight Unit Flight Unit Flight Unit [Rating: 7] Favorites ----------- Power Ion Engine Engine Ion Engine Propulsion Flight Unit Flight Unit Flight Unit Utility Makeshift Kinetic Plating Protection Makeshift Kinetic Plating Weapon Light Assault Rifle Ballistic Gun Light Assault Rifle Build | -11 -10 -10 ------- Run | Yrd Mat Sub Slots Evolved . | . . . Power . | . . . Propulsion . | . . . Utility . | . . . Weapon . | . . . Parts Attached 13 | 2 6 5 Power 2 | . 1 1 Engine 2 | . 1 1 Core . | . . . Reactor . | . . . Propulsion 4 | . 3 1 Treads . | . . . Leg . | . . . Wheel . | . . . Hover . | . . . Flight 4 | . 3 1 Utility 1 | . . 1 Device . | . . . Storage . | . . . Processor . | . . . Hackware . | . . . Protection 1 | . . 1 Artifact . | . . . Weapon 6 | 2 2 2 Energy Gun . | . . . Energy Cannon . | . . . Ballistic Gun 6 | 2 2 2 Ballistic Cannon . | . . . Launcher . | . . . Special Weapon . | . . . Impact Weapon . | . . . Slashing Weapon . | . . . Piercing Weapon . | . . . Special Melee Weapon . | . . . Unidentified Prototypes . | . . . Parts Lost 9 | . 2 7 Power 2 | . 1 1 Propulsion 3 | . 1 2 Utility 1 | . . 1 Weapon 3 | . . 3 Highest Loss Streak 6 | . 2 6 To Critical Strikes . | . . . Average Slot Usage (%) 62 | . 63 56 Engine 10 | . 11 7 Flight 22 | . 23 22 Ballistic Gun 27 | . 28 26 Naked Turns . | . . . Heaviest Build 8 | 3 8 6 Greatest Support 8 | 3 8 8 Greatest Overweight (x) 1 | . 1 . Average Overweight (x) . | . . . Largest Inventory Capacity 5 | 5 5 5 Average Capacity 5 | 5 5 5 Most Carried 5 | . 5 4 Average Carried 2 | . 2 3 Final Capacity 5 | 5 5 5 Final Carried 5 | . 5 3 Class Distribution -------------------- 78% | Scavenger-Mutant 21% | Mutant Dominant Class ---------------- Scavenger-Mutant | -10/Materials Scavenger-Mutant | -10/Subcaves Resources | -11 -10 -10 ----------- Run | Yrd Mat Sub Matter Collected 439 | 220 130 89 Remotely . | . . . Salvage Created 335 | . 234 101 Parts 36 | . 26 10 Haulers Intercepted . | . . . Recyclers Shooed . | . . . Parts Field Recycled . | . . . Retrieved Matter . | . . . Parts Self-Destructed 6 | . . 6 Prevented . | . . . Kills | -11 -10 -10 ------- Run | Yrd Mat Sub Combat Hostiles Destroyed 13 | . 9 4 Guns 13 | . 9 4 Classes Destroyed 4 | . 3 1 Tunneler 1 | . 1 . Swarmer 9 | . 6 3 Grunt 3 | . 3 . Subdweller 1 | . . 1 Best Kill Streak 7 | . 7 3 Combat Bots Only 6 | . 6 3 Max Kills in Single Turn 2 | . 2 1 Gunslinging 1 | . 1 . Exploded . | . . . Melee . | . . . Uniques/NPCs Destroyed . | . . . Combat | -11 -10 -10 -------- Run | Yrd Mat Sub Hostile Shots Fired 106 | . 46 60 Missed 39 | . 17 22 Damage Taken 918 | . 348 570 Core 254 | . 78 176 Absorbed by Shields . | . . . Core Remaining (%) 100 | 100 . . Volleys Fired 59 | . 23 36 Largest 2 | . 2 2 Hottest 40 | . 40 40 Shots Fired 109 | . 46 63 Gun 109 | . 46 63 Cannon . | . . . Launcher . | . . . Special . | . . . Kinetic 109 | . 46 63 Thermal . | . . . Explosive . | . . . Electromagnetic . | . . . Robot Hit Streak 17 | . 5 17 Robot Miss Streak 3 | . 3 3 Penetration Max . | . . . Secondary Targets 4 | . 3 1 Max Gunslinging Chain 1 | . 1 1 Shots Hit Robots 80 | . 29 51 Core Hits 27 | . 16 11 Critical Kills . | . . . Critical Parts Destroyed . | . . . Critical Strikes . | . . . Melee Attacks . | . . . Impact . | . . . Slashing . | . . . Piercing . | . . . Sneak Attacks . | . . . Combat Hostiles . | . . . Follow-up Attacks . | . . . Damage Inflicted 755 | . 340 415 Guns 743 | . 328 415 Cannons . | . . . Explosions . | . . . Melee . | . . . Ramming 12 | . 12 . Kinetic 743 | . 328 415 Thermal . | . . . Explosive . | . . . Electromagnetic . | . . . Impact . | . . . Slashing . | . . . Piercing . | . . . Highest Corruption . | . . . Average Corruption . | . . . Corruption Purged . | . . . Corruption Blocked . | . . . Overload Shots . | . . . Overflow Damage . | . . . Projectiles . | . . . Explosions . | . . . Melee . | . . . Knockbacks . | . . . Impact . | . . . Kinetic . | . . . Secondary . | . . . Self-Inflicted Damage 6 | . 6 . Shots . | . . . Rammed 1 | . 1 . Targets Rammed 1 | . 1 . Kicked . | . . . Crushed . | . . . Highest Temperature 8 | . 8 . Average Temperature 2 | . 2 . Received Heat Transfer 120 | . 48 72 Siege Activations . | . . . Robots Corrupted . | . . . Combat Hostiles . | . . . Parts Fried . | . . . Impact Corruptions . | . . . Robots Melted . | . . . Combat Hostiles . | . . . Parts Melted . | . . . Heat Transferred . | . . . Parts Sabotaged . | . . . Parts Stolen . | . . . Parts Stripped . | . . . Power Chain Reactions . | . . . Alert | -11 -10 -10 ------- Run | Yrd Mat Sub Peak Influence 145 | . 145 . Initial . | . . . Average 98 | . 100 . Maximum Alert Level . | . . . Low Security (%) 100 | 100 100 . Level 1 . | . . . Level 2 . | . . . Level 3 . | . . . Level 4 . | . . . Level 5 . | . . . High Security . | . . . Max Security . | . . . Squads Dispatched 1 | . 1 . Investigation 1 | . 1 . Extermination . | . . . Reinforcement . | . . . Assault . | . . . Garrison . | . . . Intercept . | . . . Searches Triggered . | . . . Construction Impeded . | . . . Haulers Reinforced . | . . . Active Scanning Responses . | . . . Cargo Convoy Interrupts . | . . . Stealth | -11 -10 -10 --------- Run | Yrd Mat Sub Distress Signals . | . . . Communications Jammed . | . . . Distress Signals . | . . . Times Spotted 22 | . 13 9 Peak Tracking Total 5 | . 4 5 Tactical Retreats 1 | . . 1 Traps | -11 -10 -10 ------- Run | Yrd Mat Sub Traps Triggered 1 | . 1 . Indirectly . | . . . Trap Hack Attempts . | . . . Triggered . | . . . Disarmed . | . . . Reprogrammed . | . . . Reused . | . . . Traps Extracted . | . . . Installed . | . . . Triggered . | . . . Machines | -11 -10 -10 ---------- Run | Yrd Mat Sub Machines Disabled . | . . . Max in Single Turn . | . . . Machines Repaired . | . . . Machines Dismantled . | . . . Machines Sabotaged . | . . . Overloaded Fab Kills . | . . . Hacking | -11 -10 -10 --------- Run | Yrd Mat Sub Machines Accessed 1 | . 1 . Terminals 1 | . 1 . Fabricators . | . . . Repair Stations . | . . . Recycling Units . | . . . Scanalyzers . | . . . Garrison Access . | . . . Total Hacks 2 | . 2 . Successful . | . . . Failed 2 | . 2 . Catastrophic . | . . . Database Lockouts . | . . . Manual 2 | . 2 . Terminals 2 | . 2 . Fabricators . | . . . Repair Stations . | . . . Recycling Units . | . . . Scanalyzers . | . . . Garrison Access . | . . . Terminal Hacks . | . . . Fabricator Hacks . | . . . Repair Station Hacks . | . . . Recycling Unit Hacks . | . . . Scanalyzer . | . . . Garrison Access Hacks . | . . . Unauthorized Hacks . | . . . Terminals . | . . . Fabricators . | . . . Repair Stations . | . . . Recycling Units . | . . . Scanalyzers . | . . . Garrison Access . | . . . Data Cores Recovered . | . . . Used . | . . . Hacking Detections 1 | . 1 . Full Trace Events . | . . . Feedback Events . | . . . Feedback Blocked . | . . . Robot Schematics Acquired . | . . . Robots Built . | . . . Authchips . | . . . Time . | . . . Total Robot Build Rating . | . . . Part Schematics Acquired . | . . . Parts Built . | . . . Authchips . | . . . Time . | . . . Total Part Build Rating . | . . . Parts Repaired . | . . . Time . | . . . Parts Recycled . | . . . Recycled Matter . | . . . Retrieved Matter . | . . . Retrieved Components . | . . . Parts Scanalyzed . | . . . Part Schematics Acquired . | . . . Parts Damaged . | . . . Bothacking | -11 -10 -10 ------------ Run | Yrd Mat Sub Used RIF Installer . | . . . Robots Hacked . | . . . Non-combat . | . . . Combat . | . . . Robot Hacks Applied . | . . . Relay Couplers Released . | . . . Fabnet Peak Effective % . | . . . Robots Rewired . | . . . Allies Hacked . | . . . Hacks Repelled . | . . . Allies | -11 -10 -10 -------- Run | Yrd Mat Sub Total Allies . | . . . Largest Group . | . . . Highest-Rated Group . | . . . Highest-Rated Ally . | . . . Total Orders . | . . . Ally Attacks . | . . . Total Damage . | . . . Kills . | . . . Allies Corrupted . | . . . Allies Melted . | . . . Intel | -11 -10 -10 ------- Run | Yrd Mat Sub Robot Analysis Total . | . . . Derelict Logs Recovered . | . . . Drone Launches . | . . . Drone Recoveries . | . . . Exploration | -11 -10 -10 ------------- Run | Yrd Mat Sub Turns Passed 761 | 16 603 142 Spaces Moved 273 | 26 142 105 Core 118 | 26 92 . Treads . | . . . Legs . | . . . Wheels . | . . . Hover . | . . . Flight 155 | . 50 105 Fastest Speed 37 | 50 37 37 Average Speed 43 | 50 46 37 Slowest Speed 120 | 50 120 40 Overloaded Moves . | . . . Propulsion Burnouts . | . . . Robots Hopped 4 | . 4 . Cave-ins Triggered . | . . . Exploration Rate (%) 13 | 3 27 10 Regions Visited 2 Branch Regions 1 Pre-discovered Areas . | . . . Known Exits Taken . | . . . Unknown Exits Taken 2 | 1 1 . Scrap Searched 3 | . . 3 Spaces Dug . | . . . Terrain Destroyed . | . . . Melee . | . . . Projectile . | . . . AOE . | . . . Terrain Rammed . | . . . Walls Destroyed . | . . . Machines Disabled . | . . . Actions | -11 -10 -10 --------- Run | Yrd Mat Sub Total 816 | 27 633 156 Wait 465 | . 457 8 Move 264 | 25 134 105 Hop 4 | . 4 . Pick Up 8 | . 6 2 Fast Attach 6 | 2 3 1 Attach 5 | . 1 4 Detach . | . . . Swap 2 | . 2 . Drop 3 | . 3 . Fire 59 | . 23 36 Melee . | . . . Ram . | . . . Kick . | . . . Crush . | . . . Escape Stasis . | . . . Rewire . | . . . Trap . | . . . Miscellaneous . | . . . Route ------- -11/Scrapyard -10/Materials -10/Subcaves History --------- Turn | Location | Event 10 | -11/Scrapyard | Discovered new exit (range 16) 17 | -11/Scrapyard | Entered Materials 411 | -10/Materials | Build established: Scavenger-Mutant 613 | -10/Materials | Discovered new exit (range 6) 617 | -10/Materials | Derelicts attacked the area 620 | -10/Materials | Entered Subcaves 651 | -10/Subcaves | Core integrity fell below 50% 671 | -10/Subcaves | Lost 3 parts (1p1n1w) 691 | -10/Subcaves | Disturbed a concealed Subdweller 752 | -10/Subcaves | Core integrity fell below 20% 762 | -10/Subcaves | Destroyed by P9-K8M(R) with Subdweller Laser Last Messages --------------- 00719_ Acquired 7 matter. 00722_ Subatomizers dissect the Sub. Beam Cannon. 00722_ GM-2ZK(R) destroyed. 00725_ Searching scrap... 00725_ Found Mak. Kinetic Plating. 00725_ Found Battle Cannon. 00725_ Found 36 Matter. 00726_ Acquired 7 matter. 00727_ Acquired Mak. Kinetic Plating. 00733_ LI-RJK(R) affixes Scrap Shield Fragment to Scrap Shield. 00734_ Subatomizers dissect the Sub. Beam Cannon. 00735_ LI-RJK(R) destroyed. 00739_ Mak. Kinetic Plating destroyed. 00753_ Lgt. Assault Rifle destroyed. 00755_ Searching scrap... 00755_ Found Piercing Trap. 00755_ Found Sub. Power Source. 00755_ Found 31 Matter. 00760_ Flight Unit destroyed. Map ----- +----------------------------------------------------+ | ?????????????????????????????????????????????????? | | ?????????????????????????????????????????????????? | | ?????????????????????????????????????????????????? | | ?????????????????????????????????????????????????? | | ?????????????????????????????????????????????????? | | ?????????????????????????????????????????????????? | | ?????????????????????????????????????????????????? | | ?????????????????????????????????????????????????? | | ?????????????????????????????????????????????????? | | ?????????????????????????????????????????????????? | | ?????????????????????????????????????????????????? | | ?????????????????????????????????????????????????? | | ?????????????????????????????????????????????????? | | ?????????????????????????????????????????????????? | | ?????????????????????????????????????????????????? | | ?????????????????????????????????????????????????? | | ?????????????????????????????????????????????????? | | ?????????????????????????????????????????????????? | | ?????????????????????????????????????????????????? | | ?????????????????????????????????????????????????? | | ?????????????????????????????????????????????????? | | ?????????????????????????????????????????????????? | | ?????????????????????????????????????????????????? | | ??????????????????????#####??????????????????????? | | ?????????????????????##]#&##?????????????????????? | | ?????????????????????#%%$@%#??????####??????###??? | | ?????????????????????##%R###?????## ##????## #### | | ?????????????????????###$=#??????# ##??## ## | | ?????????????????????# #]######??# #??# | | ?????????????????????# "[" ##??# #### | | ?????????????????????# [ ###?# ## ## | | ?????????????????????# ### ### | | ?????????????????????# ### ## | | ?????????????????????######?# ## # | | ????????????????????????????# ### ## | | ???????????????????????????# #?## ## ###? | | ???????????????????????????## ??# ##### "#??? | | ???????????????????????????? ## #??# ""##??? | | ???????????????????????????" #### "#??##"##???? | | ???????????????????????????"" #?? " #???###????? | | ?????????????????????????? #####? " #??????????? | | ??????????????????????????#?????""""" #??????????? | | ???????????????????????????????? """"#??????????? | | ???????????????????????????????? """##??????????? | | ???????????????????????????????? ""#????????????? | | ???????????????????????????????#""???????????????? | | ?????????????????????????????????????????????????? | | ?????????????????????????????????????????????????? | | ?????????????????????????????????????????????????? | | ?????????????????????????????????????????????????? | +----------------------------------------------------+ Best States ------------- Heat Dissipation 25 Energy Generation 10 Energy Capacity 250 Matter Stores 300 Matter Capacity 300 Sight Range 16 Terrain Scan Density 10 Armor Coverage 100 Resistance: KI 10 Evasion (%) 62 Item Schematics ----------------- None Robot Schematics ------------------ None Fabricated ------------ Nothing Alien Tech Used ----------------- None Achievements -------------- None Challenges ------------ None Game ------ Seed LightpackZhirovBay Manual? 0 Play Time 00:06:16 Cumulative 38.1 hours Start 2024.05.08 @ 01:19:15 End 2024.05.08 @ 01:24:04 Sessions 1 Manual Loads 0 Difficulty Rogue Special Mode None Game No. 38 Rogue 37 Adventurer 1 Explorer 0 Win Type - Total 2 Types 1/0/1/0/0/0/0/0/0 Lore% 36 Gallery% 50 Achievement% 42 Wizard Run 0 Options --------- Layout 1 ASCII 0 Keyboard 0 Movement Numpad Keybinds 0 Fullscreen 1 Font 20/SmallcapsGlow Map View 52x40 Zoom Use 0% Tactical HUD 1 Map Filters NONE Filters NONE Steam 1 RUN: e74aea37-10a9-43e2-a037-9c01f5761a54